bitfinex-derivatives/quotes_SOLF0:USTF0_20251209
["timestamp","ask_amount","ask_price","bid_price","bid_amount"]
[1765244282331,3.19,132.78,132.74,3.09]
[1765244282633,9.9674,132.79,132.74,3.09]
[1765244282821,0.05620899,132.78,132.76,3.09]
[1765244283021,0.05620899,132.78,132.75,3.14265994]
[1765244283222,3.24620899,132.78,132.75,3.14265994]
[1765244284523,3.19,132.77,132.75,0.05265994]
[1765244286335,0.05620899,132.78,132.75,3.14265994]
[1765244286732,0.05620899,132.78,132.75,9.92135994]
[1765244286936,0.05620899,132.78,132.77,3.09]
[1765244288330,3.19,132.82,132.78,3.09]
[1765244288637,3.19,132.82,132.79,3.09]
[1765244289327,3.2413022,132.82,132.79,3.13915827]
[1765244289524,3.2413022,132.82,132.79,0.04915827]
[1765244289725,3.2413022,132.82,132.79,3.13915827]
[1765244290533,0.0513022,132.82,132.79,3.13915827]
[1765244290732,3.2413022,132.82,132.79,3.13915827]
[1765244292537,0.0513022,132.82,132.79,3.13915827]
[1765244292938,3.2413022,132.82,132.79,3.13915827]
[1765244295634,3.2413022,132.82,132.79,0.04915827]
[1765244295934,3.2413022,132.82,132.79,3.13915827]
[1765244298440,3.2413022,132.82,132.79,0.04915827]
[1765244299544,10.0171022,132.82,132.79,0.04915827]
[1765244300142,3.29,132.81,132.79,0.04915827]
[1765244301444,0.0513022,132.82,132.79,3.41915827]
[1765244303034,0.0513022,132.82,132.81,3.37]
[1765244303733,15.21911945,132.88,132.83,3.37]
[1765244303934,5.65313188,132.87,132.83,3.37]
[1765244304138,3.29,132.85,132.82,6.7751]
[1765244304343,3.29,132.85,132.81,3.37]
[1765244304743,0.05393969,132.84,132.82,0.04770743]
[1765244305336,3.34393969,132.84,132.82,0.04770743]
[1765244306243,0.05393969,132.84,132.82,3.41770743]
[1765244307440,3.34393969,132.84,132.82,0.04770743]
[1765244308143,3.29,132.83,132.82,0.04770743]
[1765244310944,0.05393969,132.84,132.82,0.04770743]
[1765244310945,0.05393969,132.84,132.82,3.41770743]
[1765244312047,5.65995315,132.83,132.82,0.04770743]
[1765244312247,8.94995315,132.83,132.82,0.04770743]
[1765244312750,5.65995315,132.83,132.82,0.04770743]
[1765244313640,3.34393969,132.84,132.82,0.04770743]
[1765244316147,5.6580284,132.83,132.82,0.04770743]
[1765244316343,8.9480284,132.83,132.82,0.04770743]
[1765244317349,3.29,132.82,132.78,5.60405911]
[1765244317542,3.29,132.82,132.78,12.38145911]
[1765244317743,3.29,132.82,132.79,3.37]
[1765244318252,3.34710033,132.82,132.79,3.42207319]
[1765244318952,0.05710033,132.82,132.79,3.42207319]
[1765244319545,0.05710033,132.82,132.79,10.19877319]
[1765244319750,0.05710033,132.82,132.8,3.37]
[1765244321248,0.05710033,132.82,132.8,10.1463]
[1765244321553,0.05710033,132.82,132.81,3.37]
[1765244321954,5.65847749,132.86,132.82,3.37]
[1765244322250,3.29,132.88,132.84,3.37]
[1765244322445,8.94759805,132.87,132.84,3.37]
[1765244322647,3.29,132.87,132.83,5.60405911]
[1765244322850,0.05256,132.86,132.84,0.05070044]
[1765244323355,0.05256,132.86,132.84,3.42070044]
[1765244323857,3.34256,132.86,132.84,0.05070044]
[1765244324756,0.05256,132.86,132.84,3.42070044]
[1765244325954,3.29,132.88,132.85,3.37]
[1765244327053,3.34611278,132.88,132.85,3.37]
[1765244331656,0.05611278,132.88,132.85,3.37]
[1765244331851,0.05611278,132.88,132.87,3.13]
[1765244333055,3.31,132.91,132.88,3.13]
[1765244333261,7.38079994,132.93,132.89,3.13]
[1765244333262,3.31,132.92,132.89,3.13]
[1765244333466,15.40731549,132.95,132.9,2.23405911]
[1765244333764,3.31,132.95,132.91,3.13]
[1765244334165,3.35897796,132.94,132.92,0.05469122]
[1765244338076,0.04897796,132.94,132.92,3.18469122]
[1765244338276,3.35897796,132.94,132.92,0.05469122]
[1765244339480,0.04897796,132.94,132.92,3.18469122]
[1765244340381,3.35897796,132.94,132.92,0.05469122]
[1765244341583,5.59303707,132.94,132.92,0.05469122]
[1765244341877,3.23,132.93,132.92,0.05469122]
[1765244343081,10.0006,132.92,132.86,3.34]
[1765244343278,3.23,132.88,132.84,3.34]
[1765244343682,3.23,132.88,132.85,5.57405911]
[1765244343885,3.23,132.88,132.86,3.34]
[1765244344388,0.05469134,132.88,132.86,3.39788543]
[1765244344582,3.28469134,132.88,132.86,0.05788543]
[1765244345484,0.05469134,132.88,132.86,3.39788543]
[1765244346187,0.05469134,132.88,132.87,3.34]
[1765244347581,11.08585985,132.94,132.89,3.34]
[1765244347784,3.23,132.94,132.9,3.34]
[1765244347984,9.00265911,132.96,132.9,3.34]
[1765244347985,3.23,132.96,132.9,3.34]
[1765244348183,5.46405911,132.96,132.91,2.23405911]
[1765244348486,3.23,132.95,132.92,3.34]
[1765244348685,3.28149328,132.95,132.92,3.39088267]
[1765244351589,3.28149328,132.95,132.92,0.05088267]
[1765244351976,3.23,132.93,132.92,0.05088267]
[1765244353682,3.28149328,132.95,132.92,3.39088267]
[1765244353880,3.28149328,132.95,132.92,0.05088267]
[1765244354491,3.28149328,132.95,132.92,3.39088267]
[1765244356082,0.05149328,132.95,132.92,5.62494178]
[1765244356282,3.28149328,132.95,132.92,0.05088267]
[1765244357096,3.23,132.93,132.92,0.05088267]
[1765244357294,3.28149328,132.95,132.92,0.05088267]
[1765244357798,0.05149328,132.95,132.92,3.39088267]
[1765244358294,0.05149328,132.95,132.93,3.08]
[1765244358591,5.6201315,133.02,132.97,3.08]
[1765244358786,11.11419061,133.03,132.99,3.08]
[1765244358991,8.8801315,133.05,133.01,3.08]
[1765244359297,3.26,133.05,133.01,3.08]
[1765244359497,0.05014751,133.04,133.02,0.05604064]
[1765244360084,3.31014751,133.04,133.02,0.05604064]
[1765244361394,3.31014751,133.04,132.95,108.3708]
[1765244361596,3.26,133.04,132.95,108.3708]
[1765244361995,3.26,133.04,132.96,3.08]
[1765244362200,3.26,133.03,132.96,3.08]
[1765244362498,3.31409682,133.01,132.98,0.04950514]
[1765244363502,3.31409682,133.01,132.98,3.12950514]
[1765244364801,0.05409682,133.01,132.98,108.39900514]
[1765244365001,8.86651812,133.07,132.99,3.08]
[1765244365300,8.86651812,133.07,133.01,3.08]
[1765244366190,0.05091601,133.05,133.03,0.05081434]
[1765244367400,3.31091601,133.05,133.03,0.05081434]
[1765244374110,3.31091601,133.05,132.98,70.7071]
[1765244374111,3.26,133.04,132.98,70.7071]
[1765244375209,3.31731751,133.02,133.0,0.04815434]
[1765244383808,0.05731751,133.02,133.0,3.12815434]
[1765244384006,5.59471528,133.07,133.01,3.08]
[1765244384215,3.26,133.08,133.04,3.08]
[1765244385017,0.05154261,133.07,133.05,3.1333626]
[1765244386419,3.31154261,133.07,133.05,0.0533626]
[1765244387312,0.05154261,133.07,133.05,3.1333626]
[1765244390317,0.05154261,133.07,133.05,0.0533626]
[1765244390318,3.28154261,133.07,133.05,0.0533626]
[1765244392122,3.23,133.06,133.05,0.0533626]
[1765244395622,6.81454261,133.07,133.05,0.0533626]
[1765244395828,10.04454261,133.07,133.05,0.0533626]
[1765244397430,0.05154261,133.07,133.05,3.2833626]
[1765244398527,3.28154261,133.07,133.05,0.0533626]
[1765244399529,3.23,133.06,133.05,0.0533626]
[1765244400729,3.23,133.04,132.98,63.92]
[1765244400928,114.30969664,133.06,132.98,63.92]
[1765244400929,3.23,133.02,132.98,67.15]
[1765244401123,3.23,133.02,132.98,63.92]
[1765244401316,3.23,133.02,132.95,3.23]
[1765244401317,3.23,133.0,132.95,3.23]
[1765244401923,0.04779562,132.99,132.96,3.28719378]
[1765244404021,3.27779562,132.99,132.96,3.28719378]
[1765244404419,3.27779562,132.99,132.96,0.05719378]
[1765244404830,8.86279367,132.98,132.96,0.05719378]
[1765244405024,3.23,132.98,132.96,0.05719378]
[1765244406533,3.23,132.97,132.96,0.05719378]
[1765244407236,3.23,132.96,132.9,10.0011]
[1765244407433,3.23,132.96,132.9,3.23]
[1765244407632,5.62774426,132.97,132.9,3.23]
[1765244407832,3.23,132.98,132.9,3.23]
[1765244408230,0.05133725,132.95,132.93,3.34595054]
[1765244412030,0.05133725,132.95,132.94,3.29]
[1765244418034,0.05133725,132.95,132.94,122.29]
[1765244418745,3.27,132.99,132.96,3.08]
[1765244418940,3.27,132.99,132.96,122.08]
[1765244419946,3.32455668,132.99,132.96,122.13587119]
[1765244420442,0.05455668,132.99,132.97,3.08]
[1765244421031,3.24455668,132.99,132.96,122.13587119]
[1765244421641,3.24455668,132.99,132.96,119.05587119]
[1765244422742,3.24455668,132.99,132.97,3.08]
[1765244423045,3.24455668,132.99,132.96,122.13587119]
[1765244423937,3.24455668,132.99,132.96,3.13587119]
[1765244424848,0.05455668,132.99,132.97,3.08]
[1765244425446,0.05455668,132.99,132.98,3.08]
[1765244437947,9.9545,133.04,132.99,3.08]
[1765244438154,9.9545,133.04,133.01,3.08]
[1765244438459,6.7645,133.04,133.01,3.08]
[1765244438655,5.63111494,133.05,133.01,3.08]
[1765244438960,0.05685991,133.04,133.03,5.30794695]
[1765244439354,0.05685991,133.04,133.03,3.08]
[1765244439858,3.24685991,133.04,133.02,0.0573885]
[1765244441448,10.01135991,133.04,133.02,0.0573885]
[1765244442959,0.05685991,133.04,133.02,3.1373885]
[1765244444662,0.05685991,133.04,133.03,3.08]
[1765244448357,3.24685991,133.04,133.02,0.0573885]
[1765244448765,0.05685991,133.04,133.02,3.3873885]
[1765244450558,0.05685991,133.04,133.02,122.3873885]
[1765244450754,0.05685991,133.04,133.03,3.33]
[1765244453468,0.05685991,133.04,133.02,119.0573885]
[1765244453675,3.24685991,133.04,133.02,0.0573885]
[1765244455668,3.19,133.03,133.02,0.0573885]
[1765244456574,0.63,133.01,132.94,3.33]
[1765244456773,5.63476259,133.0,132.96,3.33]
[1765244457077,0.63,133.01,132.96,3.33]
[1765244457280,6.26631877,133.0,132.96,3.33]
[1765244457477,0.047503,132.99,132.97,3.38472588]
[1765244458482,0.677503,132.99,132.97,0.05472588]
[1765244458983,0.047503,132.99,132.97,3.38472588]
[1765244461486,0.677503,132.99,132.97,0.05472588]
[1765244461993,2.85794695,132.98,132.97,0.05472588]
[1765244462380,0.63,132.97,132.94,3.38]
[1765244462776,2.22794695,132.98,132.94,3.38]
[1765244462981,2.85794695,132.98,132.94,3.38]
[1765244463286,2.85794695,132.98,132.95,0.05025291]
[1765244464182,0.63,132.97,132.95,0.05025291]
[1765244464487,0.63,132.97,132.95,3.43025291]
[1765244468589,2.85794695,132.98,132.95,3.43025291]
[1765244469683,0.63,132.97,132.95,3.43025291]
[1765244470483,0.63,132.97,132.95,0.05025291]
[1765244470684,6.814803,132.99,132.92,74.07]
[1765244470685,0.63,132.95,132.92,3.38]
[1765244471393,2.85794695,132.98,132.92,3.38]
[1765244471694,0.04960659,132.96,132.95,3.38]
[1765244474692,7.3966,133.0,132.95,3.38]
[1765244474992,0.63,133.0,132.97,3.38]
[1765244475697,0.68283991,133.0,132.97,3.4341748]
[1765244475894,0.05283991,133.0,132.97,3.4341748]
[1765244476700,0.68283991,133.0,132.97,3.4341748]
[1765244477697,0.05283991,133.0,132.97,3.4341748]
[1765244478292,0.05283991,133.0,132.99,3.27]
[1765244479796,7.384,133.05,132.99,3.27]
[1765244479996,0.67,133.04,133.01,3.27]
[1765244480792,0.71896299,133.04,133.01,3.3229001]
[1765244481500,0.67,133.02,133.01,0.0529001]
[1765244481893,7.435,133.03,133.01,3.3229001]
[1765244482090,2.27690994,133.04,133.01,3.3229001]
[1765244482604,2.94690994,133.04,133.01,3.3229001]
[1765244484404,0.71896299,133.04,133.01,3.3229001]
[1765244484600,0.04896299,133.04,133.01,3.3229001]
[1765244488007,0.71896299,133.04,133.01,3.3229001]
[1765244489712,0.67,133.03,133.01,0.0529001]
[1765244490214,2.89794695,133.02,133.01,0.0529001]
[1765244490610,0.62,133.0,132.94,3.27]
[1765244490914,2.22794695,132.97,132.94,3.27]
[1765244491613,2.27640231,132.97,132.94,3.32780012]
[1765244493006,2.89640231,132.97,132.94,3.32780012]
[1765244494918,0.66845536,132.97,132.94,3.32780012]
[1765244496010,0.66845536,132.97,132.94,0.05780012]
[1765244496011,0.62,132.96,132.94,0.05780012]
[1765244496717,6.7686,132.96,132.94,3.32780012]
[1765244497015,0.66845536,132.97,132.94,3.32780012]
[1765244498017,7.43655536,132.97,132.94,3.32780012]
[1765244498211,5.68221382,132.96,132.94,3.32780012]
[1765244498418,0.62,132.96,132.94,0.05780012]
[1765244499320,0.62,132.94,132.91,3.27]
[1765244499515,7.3886,132.96,132.91,3.27]
[1765244499707,6.7686,132.96,132.91,3.27]
[1765244500111,7.3886,132.96,132.91,3.27]
[1765244500418,0.05153598,132.95,132.93,3.27]
[1765244502722,0.62,132.94,132.92,0.05511105]
[1765244503221,0.62,132.94,132.92,3.32511105]
[1765244503723,7.3897,132.94,132.92,0.05511105]
[1765244504914,5.38639282,132.95,132.92,3.32511105]
[1765244505117,5.67764226,132.94,132.92,3.32511105]
[1765244505312,0.05153598,132.95,132.92,3.32511105]
[1765244505514,5.67656129,132.94,132.92,3.32511105]
[1765244505715,0.67153598,132.95,132.92,3.32511105]
[1765244506014,5.67659102,132.94,132.92,3.32511105]
[1765244506216,0.67153598,132.95,132.92,3.32511105]
[1765244507014,7.3912,132.91,132.87,3.27]
[1765244507622,108.79851281,132.93,132.87,3.27]
[1765244507623,4.10421281,132.93,132.87,3.27]
[1765244508024,0.05404406,132.91,132.89,3.32012831]
[1765244511219,69.62446606,132.94,132.9,3.28]
[1765244511424,4.10421281,132.97,132.9,3.28]
[1765244511625,5.66551283,132.96,132.9,3.28]
[1765244512313,0.05669987,132.94,132.92,3.33250483]
[1765244512915,0.73669987,132.94,132.92,0.05250483]
[1765244513429,4.16421281,132.93,132.92,0.05250483]
[1765244514516,4.16421281,132.93,132.92,0.00151599]
[1765244514715,9.8254517,132.93,132.92,0.00151599]
[1765244516221,4.16421281,132.93,132.92,0.00151599]
[1765244516427,9.8254517,132.93,132.92,0.00151599]
[1765244517132,4.16421281,132.93,132.92,0.00151599]
[1765244519833,0.68,132.93,132.92,0.00151599]
[1765244520932,0.68,132.89,132.85,3.28]
[1765244521230,64.66,132.89,132.85,3.28]
[1765244521435,7.4536,132.86,132.82,3.28]
[1765244522029,0.68,132.84,132.83,0.0504772]
[1765244522232,6.82822244,132.85,132.83,0.0504772]
[1765244522543,6.82822244,132.85,132.83,3.3304772]
[1765244522544,0.05402244,132.85,132.83,3.3304772]
[1765244522729,70.752,132.89,132.84,3.28]
[1765244523134,63.98,132.89,132.84,3.28]
[1765244523727,0.05201378,132.88,132.84,3.28]
[1765244524641,0.05201378,132.88,132.86,3.28]
[1765244524840,0.05201378,132.88,132.86,3.32894421]
[1765244525845,5.31567085,132.95,132.87,3.28]
[1765244525846,6.42679173,132.95,132.87,3.28]
[1765244526037,0.78,132.95,132.87,3.28]
[1765244526542,7.5491,132.95,132.87,10.0526]
[1765244526843,7.5491,132.95,132.88,3.29]
[1765244527044,0.04762465,132.92,132.91,3.29]
[1765244528344,0.04762465,132.92,132.9,3.34345331]
[1765244529043,0.82762465,132.92,132.9,0.05345331]
[1765244530537,0.78,132.91,132.9,0.05345331]
[1765244531244,12.46511638,132.92,132.9,3.34345331]
[1765244531446,6.81832465,132.92,132.9,3.34345331]
[1765244531641,0.04762465,132.92,132.9,3.34345331]
[1765244539753,0.04762465,132.92,132.91,3.19]
[1765244552767,63.98,132.96,132.91,3.19]
[1765244552969,64.76,132.96,132.92,3.19]
[1765244553566,5.68631206,132.95,132.92,3.19]
[1765244553768,0.05347751,132.95,132.92,3.24564907]
[1765244553967,0.83347751,132.95,132.92,3.24564907]
[1765244554168,0.83347751,132.95,132.92,0.05564907]
[1765244554368,0.78,132.93,132.92,0.05564907]
[1765244555163,0.83347751,132.95,132.92,3.24564907]
[1765244555369,5.68541782,132.94,132.92,3.24564907]
[1765244555570,6.7695,132.94,132.92,3.24564907]
[1765244556669,0.05347751,132.95,132.92,3.24564907]
[1765244557570,6.46514844,132.94,132.92,3.24564907]
[1765244557776,9.05259289,132.95,132.92,3.24564907]
[1765244557967,6.82247751,132.95,132.92,3.24564907]
[1765244558169,0.05347751,132.95,132.92,3.24564907]
[1765244559479,0.78,132.94,132.92,0.05564907]
[1765244560477,0.78,132.93,132.92,0.05564907]
[1765244563569,8.69525688,132.93,132.92,0.05564907]
[1765244564079,6.4651415,132.93,132.92,0.05564907]
[1765244565775,6.46434019,132.93,132.92,0.05564907]
[1765244569076,6.46434019,132.93,132.92,3.32564907]
[1765244569077,5.68434019,132.93,132.92,3.32564907]
[1765244570970,5.68434019,132.93,132.92,0.05564907]
[1765244571181,11.77573778,132.93,132.92,0.05564907]
[1765244571381,10.98573778,132.93,132.92,0.05564907]
[1765244571785,5.68434019,132.93,132.92,0.05564907]
[1765244574382,10.98643902,132.93,132.92,0.05564907]
[1765244580589,10.98643902,132.93,132.92,3.32564907]
[1765244582182,5.68434019,132.93,132.92,3.32564907]
[1765244583296,0.73,132.92,132.87,122.27]
[1765244583489,0.73,132.9,132.87,3.27]
[1765244583691,6.41434019,132.89,132.87,3.27]
[1765244583997,5.68434019,132.88,132.87,3.27]
[1765244584186,0.73,132.9,132.87,3.27]
[1765244584383,5.7059623,132.89,132.87,3.32418357]
[1765244584584,5.7059623,132.88,132.87,3.32418357]
[1765244584793,6.4359623,132.88,132.87,0.05418357]
[1765244585604,0.73,132.87,132.83,67.34]
[1765244585803,5.7059623,132.86,132.84,3.38]
[1765244586104,0.73,132.87,132.84,3.38]
[1765244586296,2.96011538,132.89,132.85,3.38]
[1765244586499,6.4280654,132.88,132.85,3.38]
[1765244586798,5.6980654,132.87,132.85,3.42893274]
[1765244586998,0.77862902,132.88,132.85,3.42893274]
[1765244587200,5.69806763,132.87,132.85,3.42893274]
[1765244587401,0.77862902,132.88,132.85,3.42893274]
[1765244587697,5.69510425,132.87,132.85,3.42893274]
[1765244587901,0.77862902,132.88,132.85,3.42893274]
[1765244588203,5.69516849,132.87,132.85,3.42893274]
[1765244588402,0.77862902,132.88,132.85,3.42893274]
[1765244588592,5.69272723,132.87,132.85,3.42893274]
[1765244588791,0.77862902,132.88,132.85,3.42893274]
[1765244588990,6.42272723,132.87,132.85,0.04893274]
[1765244589192,0.73,132.87,132.85,0.04893274]
[1765244589396,0.73,132.86,132.85,0.04893274]
[1765244590303,6.417844,132.86,132.85,0.04893274]
[1765244591705,0.77862902,132.88,132.85,3.42893274]
[1765244591899,0.73,132.86,132.85,0.04893274]
[1765244593712,7.55142902,132.88,132.85,3.42893274]
[1765244594100,0.77862902,132.88,132.85,3.42893274]
[1765244597109,0.04862902,132.88,132.85,3.42893274]
[1765244597409,0.04862902,132.88,132.86,3.38]
[1765244597615,0.04862902,132.88,132.87,3.38]
[1765244598109,0.04862902,132.88,132.87,5.61011538]
[1765244598819,5.68097112,132.92,132.88,3.38]
[1765244599005,2.96011538,132.93,132.89,3.38]
[1765244599195,5.68106695,132.92,132.89,3.38]
[1765244599398,2.96011538,132.93,132.89,3.38]
[1765244599604,5.68154119,132.92,132.89,3.38]
[1765244599803,0.05584147,132.92,132.89,3.43366577]
[1765244600106,0.78584147,132.92,132.89,3.43366577]
[1765244603418,0.73,132.91,132.89,0.05366577]
[1765244603714,6.41164862,132.9,132.89,0.05366577]
[1765244605813,5.68164862,132.9,132.89,3.43366577]
[1765244607516,0.78584147,132.92,132.89,3.43366577]
[1765244607712,5.68417209,132.91,132.89,3.43366577]
[1765244608016,0.78584147,132.92,132.89,3.43366577]
[1765244608211,5.6841732,132.91,132.89,3.43366577]
[1765244608414,0.78584147,132.92,132.89,3.43366577]
[1765244608612,5.68494805,132.91,132.89,3.43366577]
[1765244608816,0.78584147,132.92,132.89,3.43366577]
[1765244609006,5.68494976,132.91,132.89,3.43366577]
[1765244609203,0.78584147,132.92,132.89,3.43366577]
[1765244609407,5.68526416,132.91,132.89,3.43366577]
[1765244609725,0.73,132.91,132.89,0.05366577]
[1765244610016,0.73,132.9,132.89,0.05366577]
[1765244610212,6.41527896,132.9,132.89,0.05366577]
[1765244610405,6.41527896,132.9,132.87,119.0]
[1765244610611,0.73,132.89,132.87,119.0]
[1765244611117,2.96011538,132.89,132.87,119.0]
[1765244611320,0.73,132.88,132.87,119.0]
[1765244612320,6.41309613,132.88,132.87,119.0]
[1765244612514,5.68309613,132.88,132.87,119.0]
[1765244612910,6.41309613,132.88,132.87,119.0]
[1765244614120,6.41309613,132.88,132.86,0.05286204]
[1765244614319,0.73,132.88,132.86,0.05286204]
[1765244619312,6.41415189,132.87,132.86,0.05286204]
[1765244620021,0.73,132.86,132.83,122.38]
[1765244620214,0.73,132.86,132.83,3.38]
[1765244620919,7.5032,132.87,132.83,3.38]
[1765244621119,5.73457833,132.86,132.84,3.42877084]
[1765244621320,0.05121464,132.86,132.84,3.42877084]
[1765244623924,0.05121464,132.86,132.84,10.20307084]
[1765244624125,0.05121464,132.86,132.85,3.38]
[1765244628529,0.78121464,132.86,132.84,122.26877084]
[1765244628826,0.05121464,132.86,132.84,122.26877084]
[1765244629234,0.78121464,132.86,132.84,119.04877084]
[1765244629725,0.78121464,132.86,132.84,122.26877084]
[1765244630331,0.05121464,132.86,132.84,122.26877084]
[1765244631230,0.05121464,132.86,132.85,3.22]
[1765244631428,5.74342411,132.86,132.85,3.22]
[1765244632021,0.05121464,132.86,132.85,3.22]
[1765244633026,6.4733144,132.86,132.84,119.04877084]
[1765244633336,0.73,132.85,132.84,119.04877084]
[1765244633829,6.42184729,132.85,132.84,119.04877084]
[1765244637532,5.69184729,132.85,132.84,119.04877084]
[1765244637740,5.69184729,132.85,132.84,3.26877084]
[1765244639130,5.69184729,132.85,132.84,0.04877084]
[1765244639329,6.42184729,132.85,132.84,0.04877084]
[1765244639737,0.73,132.84,132.82,3.22]
[1765244639938,0.73,132.84,132.81,3.22]
[1765244640135,0.73,132.82,132.8,3.22]
[1765244640336,0.73,132.84,132.8,3.22]
[1765244640540,5.68715445,132.83,132.81,3.22]
[1765244640725,0.05288572,132.83,132.81,3.27273894]
[1765244640927,71.01085153,132.88,132.81,3.27273894]
[1765244641126,11.74881138,132.87,132.82,3.22]
[1765244641331,5.68828505,132.86,132.82,3.22]
[1765244641635,5.68828505,132.85,132.83,3.05]
[1765244641841,0.78,132.87,132.83,3.05]
[1765244642039,0.04931436,132.85,132.83,3.09834919]
[1765244648942,5.69428041,132.84,132.83,3.09834919]
[1765244650542,6.47428041,132.84,132.83,0.04834919]
[1765244653243,0.78,132.82,132.79,3.05]
[1765244653442,5.69428041,132.81,132.79,3.05]
[1765244653642,0.78,132.82,132.79,3.05]
[1765244653828,5.69536081,132.81,132.79,3.05]
[1765244654035,6.7752,132.83,132.79,3.05]
[1765244654235,5.74599313,132.82,132.81,3.05]
[1765244655536,0.05185583,132.82,132.81,3.05]
[1765244660143,14.56415153,132.87,132.82,3.12]
[1765244660344,10.98334317,132.86,132.83,3.12]
[1765244660545,5.69638456,132.85,132.83,3.12]
[1765244660747,5.69638456,132.84,132.83,3.12]
[1765244661145,0.78,132.83,132.82,119.05301036]
[1765244661355,6.47638456,132.83,132.82,119.05301036]
[1765244661650,5.69638456,132.83,132.82,122.17301036]
[1765244662348,6.47638456,132.83,132.82,119.05301036]
[1765244664349,6.47638456,132.83,132.82,0.05301036]
[1765244669351,5.69638456,132.83,132.82,3.17301036]
[1765244669952,6.47638456,132.83,132.82,0.05301036]
[1765244672857,5.69638456,132.83,132.82,3.17301036]
[1765244674054,5.69638456,132.83,132.82,0.05301036]
[1765244674554,6.47638456,132.83,132.82,0.05301036]
[1765244676255,0.78,132.81,132.77,3.12]
[1765244676449,0.78,132.79,132.76,3.12]
[1765244677357,0.83782018,132.79,132.76,3.17427753]
[1765244679855,0.05782018,132.79,132.77,2.23557848]
[1765244680056,0.05782018,132.79,132.78,3.12]
[1765244682059,0.05782018,132.79,132.78,122.12]
[1765244682258,5.69772049,132.82,132.79,3.12]
[1765244682458,12.79326928,132.84,132.8,3.12]
[1765244682657,5.69801946,132.83,132.8,3.12]
[1765244682959,5.69801946,132.82,132.8,3.12]
[1765244683162,0.05161866,132.82,132.8,3.17594841]
[1765244684556,0.89161866,132.82,132.8,3.17594841]
[1765244685360,0.05161866,132.82,132.8,3.17594841]
[1765244688366,0.05161866,132.82,132.81,5.46557848]
[1765244689150,0.05161866,132.82,132.81,124.46557848]
[1765244693662,107.58987848,132.88,132.81,124.46557848]
[1765244693663,16.85923001,132.88,132.82,3.23]
[1765244693967,0.84,132.86,132.83,3.23]
[1765244694264,5.70544716,132.85,132.83,3.23]
[1765244694474,5.70544716,132.84,132.83,3.23]
[1765244695057,0.04826667,132.85,132.83,3.23]
[1765244695468,5.70507325,132.84,132.83,3.23]
[1765244695866,0.84,132.83,132.79,3.23]
[1765244696169,5.70409744,132.82,132.79,3.23]
[1765244696369,0.84,132.83,132.79,3.23]
[1765244696571,5.70387277,132.82,132.79,3.23]
[1765244696867,0.84,132.83,132.79,3.23]
[1765244697060,5.75698898,132.82,132.79,3.28371896]
[1765244697256,0.05323428,132.82,132.79,3.28371896]
[1765244697459,0.05323428,132.82,132.79,5.51929744]
[1765244697659,0.05323428,132.82,132.8,3.23]
[1765244700270,7.01085153,132.87,132.82,3.23]
[1765244700462,7.01085153,132.87,132.83,2.23557848]
[1765244700463,10.93539382,132.86,132.83,2.23557848]
[1765244700664,5.70330091,132.85,132.84,3.23]
[1765244700872,6.7728,132.88,132.84,3.23]
[1765244701073,5.70385397,132.87,132.86,3.23]
[1765244702773,6.57705324,132.87,132.85,122.43123718]
[1765244702973,0.89,132.87,132.85,0.05123718]
[1765244703172,7.6631,132.87,132.85,0.05123718]
[1765244703469,5.68572102,132.86,132.85,0.05123718]
[1765244704978,6.57572102,132.86,132.85,0.05123718]
[1765244705767,5.68572102,132.86,132.85,0.05123718]
[1765244707375,6.57572102,132.86,132.85,0.05123718]
[1765244707564,6.57572102,132.86,132.81,189.7958]
[1765244707565,0.89,132.84,132.81,67.4]
[1765244707762,0.89,132.82,132.78,124.61557848]
[1765244707964,0.89,132.82,132.79,3.38]
[1765244708370,0.89,132.82,132.78,124.61557848]
[1765244708677,0.05422715,132.81,132.79,0.05003233]
[1765244709179,0.94422715,132.81,132.79,0.05003233]
[1765244709976,0.05422715,132.81,132.79,3.43003233]
[1765244710575,0.94422715,132.81,132.79,0.05003233]
[1765244712087,0.89,132.8,132.79,0.05003233]
[1765244715585,7.72042715,132.81,132.79,0.05003233]